[Event "FIDE World Cadets GU12 2022"]
[Site "Batumi"]
[Date "2022.09.27"]
[Round "11.1"]
[White "Shubhi Gupta"]
[Black "Goriachkina, Oksana"]
[Result "1/2-1/2"]
[ECO "D01"]
[WhiteElo "1733"]
[BlackElo "1748"]
[Annotator "NA RC COMBH"]
[PlyCount "57"]
[EventDate "2022.09.16"]
[EventType "swiss"]
[EventCountry "GEO"]
[SourceTitle "playchess.com"]
[Source "ChessBase"]
[SourceQuality "1"]
[TimeControl "5400+30"]

1. d4 {[%emt 0:04:00]} d5 {[%emt 0:01:00]} 2. Nc3 {[%emt 0:00:30]} Nf6 {[%emt 0:01:30]} 3. Bg5 {[%emt 0:00:30]} c6 {[%emt 0:00:30]} 4. f3 {[%emt 0:08:30]} Qb6 {[%emt 0:07:30]} 5. Na4 {[%emt 0:03:30]} Qa5+ {[%emt 0:10:30]} 6. c3 {[%emt 0:03:30]} Nbd7 {[%emt 0:00:30]} 7. b4 {[%emt 0:13:30]} Qc7 {[%emt 0:00:30]} 8. e3 {[%emt 0:00:30]} e6 {[%emt 0:03:30]} 9. Bd3 {[%emt 0:04:30]} Bd6 {[%emt 0:03:30]} 10. Ne2 {[%emt 0:01:30]} b6 {[%emt 0:02:30]} 11. a3 {[%emt 0:03:30]} Bb7 {[%emt 0:01:30]} 12. Nb2 {[%emt 0:01:30]} c5 {[%emt 0:04:30]} 13. Qd2 {[%emt 0:04:30]} c4 {[%emt 0:07:30]} 14. Bc2 {[%emt 0:01:30]} b5 {[%emt 0:01:30]} 15. a4 {[%emt 0:02:30]} a6 {[%emt 0:03:30]} 16. a5 {[%emt 0:02:30]} h6 {[%emt 0:00:30]} 17. Bh4 {[%emt 0:00:30]} O-O-O {[%emt 0:05:30]} 18. Nd1 {[%emt 0:04:30]} Rde8 {[%emt 0:02:30]} 19. Nf2 {[%emt 0:00:30]} g5 {[%emt 0:08:30]} 20. Bg3 {[%emt 0:00:30]} Nh5 {[%emt 0:01:30]} 21. Bxd6 {[%emt 0:02:30]} Qxd6 {[%emt 0:00:00]} 22. O-O-O {[%emt 0:00:30]} Ref8 {[%emt 0:03:00]} 23. e4 {[%emt 0:02:30]} f5 {[%emt 0:07:30]} 24. exf5 {[%emt 0:05:30]} exf5 {[%emt 0:00:30]} 25. Rde1 {[%emt 0:00:30]} Ng7 {[%emt 0:02:30]} 26. h4 {[%emt 0:05:30]} Qf6 {[%emt 0:01:39]} 27. hxg5 {[%emt 0:03:30]} hxg5 {[%emt 0:00:30]} 28. Ng3 {[%emt 0:00:30]} Kc7 {[%emt 0:08:32]} 29. Bb1 {[%emt 0:07:07]} 1/2-1/2

[Event "FIDE World Cadets GU12 2022"]
[Site "Batumi"]
[Date "2022.09.27"]
[Round "11.2"]
[White "Preobrazhenskaya, Diana"]
[Black "Abramkina, Veranika"]
[Result "1-0"]
[ECO "B43"]
[WhiteElo "1994"]
[BlackElo "1445"]
[Annotator "TA"]
[PlyCount "81"]
[EventDate "2022.09.16"]
[EventType "swiss"]
[EventCountry "GEO"]
[SourceTitle "playchess.com"]
[Source "ChessBase"]
[SourceQuality "1"]
[TimeControl "5400+30"]

{[%evp 16,81,0,0,93,93,88,27,56,41,45,47,172,0,70,71,204,216,357,351,321,147,160,118,162,107,119,102,147,152,356,247,247,191,194,191,191,199,186,196,181,74,68,66,643,195,316,131,129,141,511,466,600,582,858,815,923,912,912,904,782,747,731,641,888,831,29963,29965]} 1. e4 {[%emt 0:01:00]} c5 {[%emt 0:01:00]} 2. Nf3 {[%emt 0:00:30]} e6 {[%emt 0:00:30]} 3. d4 {[%emt 0:00:30]} cxd4 {[%emt 0:00:30]} 4. Nxd4 {[%emt 0:00:30]} a6 {[%emt 0:00:00]} 5. Nc3 {[%emt 0:00:00]} Qc7 {[%emt 0:00:00]} 6. a3 {[%emt 0:04:00]} Nf6 {[%emt 0:00:00]} 7. Be2 {[%emt 0:00:30]} b5 {[%emt 0:00:00]} 8. O-O {[%emt 0:03:30]} Bb7 {[%emt 0:00:00]} 9. Qd3 {[%emt 0:05:30]} d5 {[%emt 0:04:00] B43: Sicilian: Kan Variation: 5 Nc3.} (9... Be7 $11 {keeps the balance.}) 10. exd5 $16 {[%emt 0:03:30]} Nxd5 {[%emt 0:00:30]} 11. Bf3 {[%emt 0:11:30]} (11. Bh5 Qe5 12. Nxe6 (12. Qf3 g6) 12... Qxh5 13. Nxf8) (11. Bh5 $16 g6 12. Nxd5 (12. Bf3 Nxc3 13. Bxb7 Qxb7 $11) 12... Bxd5 13. Bf3) 11... Nxc3 $11 {[%emt 0:03:30] [#] White has an edge.} 12. bxc3 $146 {[%emt 0:04:30]} ({Predecessor:} 12. Bxb7 Qxb7 13. Qxc3 Nd7 14. Qg3 Be7 15. Bg5 Bxg5 16. Qxg5 O-O 17. Rad1 h6 18. Qg3 {1-0 (40) Boehle,R (2111)-Blum,G (2200) Offenbach 2005}) 12... Nd7 {[%emt 0:04:30] [#]} 13. Bf4 $1 {[%emt 0:05:30]} Qb6 {[%emt 0:05:30]} (13... e5 14. Rfe1 Bc5 15. Bxe5 Nxe5 16. Bxb7) (13... Qxf4 14. Bxb7 Ra7) (13... e5 14. Rfe1 Bc5 15. Bxe5 $1 {[%mdl 512]} Nxe5 16. Bxb7 $16) (13... Qc8 $14) (13... Qxf4 14. Bxb7) 14. Nf5 $2 {[%emt 0:18:30]} O-O-O {[%emt 0:09:30]} (14... exf5 15. Rfe1+ Be7 16. Bd6 (16. Qe2 O-O)) (14... Nc5 15. Qe3 Bxf3 16. Qxf3 Qb7 17. Qxb7 Nxb7) ({Don't do} 14... exf5 15. Rfe1+ Be7 16. Bd6 $16 (16. Qe2 O-O $15)) (14... Nc5 $1 $11 15. Qe3 Bxf3 16. Qxf3 Qb7 17. Qxb7 Nxb7) 15. Bxb7+ $14 {[%emt 0:05:30]} Kxb7 {[%emt 0:00:30]} (15... Qxb7 16. Nd6+ Bxd6 17. Qxd6 Rhe8) (15... Qxb7 $16 16. Nd6+ Bxd6 17. Qxd6 Qb6) 16. Nd4 $18 {[%emt 0:02:30]} Ka8 {[%emt 0:06:30]} (16... e5) (16... e5 $142) 17. a4 {[%emt 0:08:30][%cal Ra4b5]} b4 {[%emt 0:06:30] [#]} 18. Qg3 {[%emt 0:15:40]} (18. Bc7 Qxc7 19. Qxa6+ Qa7 20. Qxa7+ Kxa7 21. Nc6+ Ka6 22. Nxd8) (18. Bc7 $1 $18 {[%mdl 512] has better winning chances.} Qxc7 19. Qxa6+ Qa7 20. Qxa7+ Kxa7 21. Nc6+ Ka6 22. Nxd8) 18... Rc8 $16 {[%emt 0:05:30]} 19. a5 {[%emt 0:01:11] White is more active.} Qc5 {[%emt 0:02:30] [#]} (19... Qb7) 20. Be3 {[%emt 0:02:11]} (20. cxb4 Qd5 21. Nf3) (20. cxb4 $1 $18 Qd5 21. Nf3) 20... Qd5 {[%emt 0:10:30]} 21. Rfd1 {[%emt 0:01:45][%cal Od4f5] And now Nf5! would win.} Bd6 {[%emt 0:00:30] [#]} (21... Nf6) 22. Qh3 {[%emt 0:00:27][%cal Od4e6]} Qe5 {[%emt 0:06:30]} (22... Nf6) (22... Nf6 $16) 23. Qf3+ {[%emt 0:01:13]} Qd5 {[%emt 0:06:30]} 24. Nxe6 {[%emt 0:01:08]} Qxf3 {[%emt 0:00:30]} 25. gxf3 {[%emt 0:00:00] Really sharp!} Rc6 {[%emt 0:03:30]} 26. Nd4 {[%emt 0:01:01]} (26. Nxg7 $2 Rg8 27. Kf1 Rxg7 28. cxb4 Bxh2 $17) 26... Rxc3 {[%emt 0:04:33]} 27. Nf5 {[%emt 0:00:52][%csl LRd6,LRg7]} Be5 {[%emt 0:00:27]} 28. Rab1 {[%emt 0:00:24]} (28. Rxd7 $18 {and the rest is easy.} Rxe3 29. fxe3 Bxa1 30. Ne7 (30. Rxf7 Rc8 $11)) 28... Nf6 {[%emt 0:00:32]} 29. Rxb4 {[%emt 0:00:24]} g6 $2 {[%emt 0:00:33][%mdl 8192]} (29... Bc7) (29... Bc7 $14) 30. Ne7 $2 {[%emt 0:01:02]} (30. Rb6 Rxc2 (30... Ra3 31. Rxa6+) 31. Nd6) (30. Rb6 {[%cal Od1b1] Rdb1! would kill now.} Ra3 31. Rxa6+ Kb7 32. Ra7+ Kc6 33. Nd4+ Bxd4 34. Bxd4) 30... Re8 {[%emt 0:00:54]} (30... Rb8 31. Rxb8+ Bxb8) (30... Rb8 $142 31. Rxb8+ Bxb8) 31. Nd5 {[%emt 0:00:27]} (31. f4 Bc7 32. Bd4) (31. f4 $18 Bc7 32. Bd4) 31... Nxd5 {[%emt 0:00:16]} 32. Rxd5 {[%emt 0:00:06] Strongly threatening Re4.} Rxc2 $2 {[%emt 0:00:15][%mdl 8192] [#]} (32... Bc7) (32... Bc7 $16) 33. Re4 $1 $18 {[%emt 0:01:53]} f6 {[%emt 0:06:18]} 34. f4 {[%emt 0:00:40]} Kb7 {[%emt 0:04:29]} 35. fxe5 {[%emt 0:00:19]} Rxe5 {[%emt 0:00:20]} 36. Rdxe5 {[%emt 0:00:53]} fxe5 {[%emt 0:00:30]} 37. Rxe5 {[%emt 0:00:04] KRB-KR} Kc6 {[%emt 0:00:00]} 38. Bb6 {[%emt 0:00:26]} Rc4 {[%emt 0:00:00]} 39. h3 {[%emt 0:00:40]} Rf4 {[%emt 0:00:31]} 40. Rc5+ {[%emt 0:00:13]} Kd6 {[%emt 0:00:29]} 41. Bc7+ {Weighted Error Value: White=0.65/Black=1.06} 1-0

[Event "FIDE World Cadets GU12 2022"]
[Site "Batumi"]
[Date "2022.09.27"]
[Round "11.3"]
[White "Shreya G Hipparagi"]
[Black "Kaliakhmet, Elnaz"]
[Result "1/2-1/2"]
[ECO "B42"]
[WhiteElo "1574"]
[BlackElo "1864"]
[Annotator "NA RC COMBH"]
[PlyCount "279"]
[EventDate "2022.09.16"]
[EventType "swiss"]
[EventCountry "GEO"]
[SourceTitle "playchess.com"]
[Source "ChessBase"]
[SourceQuality "1"]
[TimeControl "5400+30"]

1. e4 {[%emt 0:01:00]} c5 {[%emt 0:01:00]} 2. Nf3 {[%emt 0:00:30]} e6 {[%emt 0:00:30]} 3. d4 {[%emt 0:00:00]} cxd4 {[%emt 0:00:30]} 4. Nxd4 {[%emt 0:00:00]} a6 {[%emt 0:00:30]} 5. Bd3 {[%emt 0:00:00]} Bc5 {[%emt 0:00:00]} 6. Nb3 {[%emt 0:01:00]} Ba7 {[%emt 0:00:00]} 7. c4 {[%emt 0:00:30]} Nc6 {[%emt 0:01:30]} 8. Nc3 {[%emt 0:00:30]} Nge7 {[%emt 0:06:30]} 9. O-O {[%emt 0:00:30]} O-O {[%emt 0:00:30]} 10. Kh1 {[%emt 0:02:30]} f5 {[%emt 0:04:30]} 11. Bg5 {[%emt 0:06:30]} (11. f4 $142) 11... f4 {[%emt 0:08:30]} 12. f3 {[%emt 0:01:30]} Qe8 {[%emt 0:04:30]} 13. Bh4 $1 {[%emt 0:02:30]} Qh5 {[%emt 0:03:30]} 14. Bf2 {[%emt 0:00:30]} Bxf2 {[%emt 0:00:30]} 15. Rxf2 {[%emt 0:00:30]} Rf6 {[%emt 0:03:30] [#]} (15... b6 $14) 16. Na4 {[%emt 0:01:30]} (16. c5 $1 $16) 16... Rh6 {[%emt 0:01:30]} 17. h3 {[%emt 0:02:30]} Ne5 {[%emt 0:13:30]} 18. Bf1 {[%emt 0:01:30]} d5 {[%emt 0:26:30]} 19. Nb6 {[%emt 0:08:30]} ({Don't play} 19. cxd5 $6 exd5 20. Nc3 dxe4 21. Nxe4 (21. Qd8+ $2 Kf7 $19) 21... Bf5 $14) 19... Rb8 {[%emt 0:00:30]} 20. exd5 {[%emt 0:00:30]} ({White should try} 20. Qd2 $18) 20... Nf5 {[%emt 0:00:30]} 21. d6 {[%emt 0:02:30]} Bd7 {[%emt 0:06:26]} 22. Nc5 $2 {[%emt 0:15:30] [#]} (22. Nxd7 $16 Nxd7 23. c5) 22... Bc6 $1 {[%emt 0:01:15]} 23. b4 {[%emt 0:05:30]} Ng4 {[%emt 0:05:00]} 24. Qe1 {[%emt 0:03:30]} (24. Qd2 $142) 24... Nxf2+ $2 {[%emt 0:02:14]} (24... Ng3+ $19 {has better winning chances.} 25. Kg1 Ne3) 25. Qxf2 {[%emt 0:00:30]} Nxd6 {[%emt 0:00:29]} (25... Rd8 $19 26. Rd1 Rxd6 27. Rxd6 Nxd6) 26. Re1 {[%emt 0:02:30]} e5 {[%emt 0:03:33]} 27. a4 {[%emt 0:01:30] [#]} Nf5 {[%emt 0:04:35]} ({Black should try} 27... Re8 $1 28. Bd3 Nf5) 28. b5 {[%emt 0:00:30]} axb5 {[%emt 0:00:30]} 29. cxb5 {[%emt 0:00:30]} Ng3+ {[%emt 0:00:37]} 30. Kg1 {[%emt 0:00:00]} Be8 {[%emt 0:01:37]} 31. Nc4 {[%emt 0:00:00]} Nxf1 {[%emt 0:00:30]} (31... Bf7 $5 {[%cal Rg3f1]}) 32. Rxe5 {[%emt 0:00:30]} Qf7 {[%emt 0:00:48]} 33. Qxf1 {[%emt 0:00:30]} Rd8 $2 {[%emt 0:00:21]} (33... b6 $1 $11 {and Black stays safe.} 34. Ne4 Qd7) 34. Ne4 $2 {[%emt 0:00:30]} (34. Qe2 $18 Rc8 35. Re7) 34... Qc7 {[%emt 0:00:27]} 35. Qe2 {[%emt 0:01:30]} Bf7 {[%emt 0:00:28]} 36. Rc5 {[%emt 0:00:30]} Qe7 {[%emt 0:00:30]} 37. b6 {[%emt 0:01:30]} Bd5 {[%emt 0:00:38]} 38. Rc7 {[%emt 0:00:30]} Qe6 {[%emt 0:00:18]} 39. Qb2 {[%emt 0:01:30]} Rg6 {[%emt 0:00:13]} 40. Ne5 {[%emt 0:01:30]} Qxb6+ {[%emt 0:00:00]} 41. Qxb6 {[%emt 0:00:00]} Rxb6 {[%emt 0:00:00]} 42. Nc3 {[%emt 0:01:00]} Bc6 {[%emt 0:00:00]} 43. Kf2 {[%emt 0:01:30]} Rb2+ {[%emt 0:00:09]} 44. Kg1 {[%emt 0:00:30]} Re8 {[%emt 0:01:22]} 45. Nxc6 {[%emt 0:02:30]} bxc6 {[%emt 0:00:04]} 46. Rxc6 {[%emt 0:01:30]} Rc2 {[%emt 0:00:14]} 47. Kh2 {[%emt 0:01:30]} Re1 {[%emt 0:01:14]} (47... Rc1 $142 48. Rc7 Re3) 48. Rc8+ {[%emt 0:00:30]} Kf7 {[%emt 0:00:31]} 49. Rc7+ {[%emt 0:00:00]} Kg6 {[%emt 0:00:38]} 50. Nd5 {[%emt 0:00:00]} Rxc7 {[%emt 0:00:02]} 51. Nxc7 {[%emt 0:00:30]} Ra1 {[%emt 0:00:30]} 52. Ne6 {[%emt 0:00:30]} Rxa4 {[%emt 0:00:00]} 53. Nc5 {[%emt 0:00:00]} Ra2 {[%emt 0:00:29]} 54. Ne4 {[%emt 0:00:00]} Kf5 {[%emt 0:00:00]} 55. h4 {[%emt 0:00:30]} Ke5 {[%emt 0:00:46]} 56. Kh3 {[%emt 0:00:00]} h6 {[%emt 0:00:53]} 57. Nc5 {[%emt 0:01:00]} g6 {[%emt 0:02:02]} 58. Ne4 {[%emt 0:00:30]} Kd4 {[%emt 0:00:17]} 59. Nf6 {[%emt 0:00:30]} h5 {[%emt 0:00:49]} 60. Ne4 {[%emt 0:01:30]} Ra1 {[%emt 0:00:29]} 61. Kh2 {[%emt 0:00:00]} Ke3 {[%emt 0:00:31]} 62. Ng5 {[%emt 0:00:00]} Ra4 {[%emt 0:00:16]} 63. Nh3 {[%emt 0:00:30]} Ke2 {[%emt 0:01:03]} 64. Kg1 {[%emt 0:00:30]} Rb4 {[%emt 0:00:00]} 65. Kh2 {[%emt 0:00:30]} Ke3 {[%emt 0:00:37]} 66. Kg1 {[%emt 0:00:30]} Rb1+ {[%emt 0:00:39]} 67. Kh2 {[%emt 0:00:30]} Ra1 {[%emt 0:00:30]} 68. Ng5 {[%emt 0:00:00]} Rb1 {[%emt 0:01:11]} 69. Nh3 {[%emt 0:00:00]} Ra1 {[%emt 0:00:30]} 70. Ng5 {[%emt 0:00:00]} Ke2 {[%emt 0:00:02]} (70... Ra2 $19 {is more deadly.} 71. Ne6 Rc2) 71. Nh3 {[%emt 0:00:00]} Ra4 {[%emt 0:00:31]} 72. Kg1 {[%emt 0:00:30]} Rc4 {[%emt 0:00:00]} 73. Kh2 {[%emt 0:00:00]} Kf1 {[%emt 0:00:22]} 74. Kh1 {[%emt 0:00:00]} Ra4 {[%emt 0:00:34]} 75. Kh2 {[%emt 0:00:30]} Rd4 {[%emt 0:00:00]} 76. Kh1 {[%emt 0:00:30]} Rc4 {[%emt 0:00:26]} 77. Kh2 {[%emt 0:00:00]} Ke2 {[%emt 0:00:06]} 78. Kg1 {[%emt 0:00:00]} Rc1+ {[%emt 0:00:30]} 79. Kh2 {[%emt 0:00:30]} Ke3 {[%emt 0:00:00]} 80. Ng5 {[%emt 0:00:00]} Rc5 {[%emt 0:00:33]} 81. Nh3 {[%emt 0:00:00]} Rf5 {[%emt 0:00:00]} 82. Kg1 {[%emt 0:00:30]} Ke2 {[%emt 0:00:29]} 83. Kh2 {[%emt 0:00:00]} Kf1 {[%emt 0:00:20]} 84. Kh1 {[%emt 0:00:00]} Ra5 {[%emt 0:00:59]} 85. Nxf4 {[%emt 0:00:30]} g5 {[%emt 0:00:09]} 86. hxg5 {[%emt 0:01:30]} Rxg5 {[%emt 0:00:30]} 87. Kh2 {[%emt 0:00:30]} Rf5 {[%emt 0:00:22]} 88. Nh3 {[%emt 0:00:30]} h4 {[%emt 0:00:22]} 89. f4 {[%emt 0:00:30]} Rf8 {[%emt 0:00:35]} 90. g3 {[%emt 0:00:30]} Ke2 {[%emt 0:02:13]} 91. Kg2 {[%emt 0:00:30]} Ke3 {[%emt 0:00:29]} 92. gxh4 {[%emt 0:01:30]} Rg8+ {[%emt 0:00:06]} 93. Ng5 {[%emt 0:01:30]} Kxf4 {[%emt 0:00:30]} 94. Kh3 {[%emt 0:00:30]} Re8 {[%emt 0:00:15]} 95. Nf7 {[%emt 0:01:30]} Re3+ {[%emt 0:00:34]} 96. Kg2 {[%emt 0:00:30]} Kg4 {[%emt 0:00:30]} 97. Nh6+ {[%emt 0:00:30]} Kh5 {[%emt 0:00:00]} 98. Nf5 {[%emt 0:00:00]} Ra3 {[%emt 0:00:00]} 99. Kf2 $11 {[%emt 0:00:00]} Kg4 {[%emt 0:00:00]} 100. Ne3+ {[%emt 0:00:30]} Kxh4 {[%emt 0:00:17]} 101. Kf3 {[%emt 0:00:30]} Kg5 {[%emt 0:00:00]} 102. Ke4 {[%emt 0:00:00]} Kf6 {[%emt 0:00:01]} 103. Kd4 {[%emt 0:01:00]} Ke6 {[%emt 0:00:30]} 104. Nc4 {[%emt 0:00:30]} Rh3 {[%emt 0:00:00]} 105. Kc5 {[%emt 0:00:00]} Rh5+ {[%emt 0:00:15]} 106. Kd4 {[%emt 0:00:00]} Kd7 {[%emt 0:01:09]} 107. Ne5+ {[%emt 0:00:00]} Kd6 {[%emt 0:00:00]} 108. Nc4+ {[%emt 0:00:00]} Ke6 {[%emt 0:00:20]} 109. Ne3 {[%emt 0:00:30]} Rh4+ {[%emt 0:00:12]} 110. Kc5 {[%emt 0:00:00]} Ke5 {[%emt 0:00:34]} 111. Nc4+ $1 {[%emt 0:00:00]} Ke4 {[%emt 0:00:00]} 112. Nd6+ {[%emt 0:00:30]} Kd3 {[%emt 0:00:00]} 113. Kd5 {[%emt 0:01:30]} Rh5+ {[%emt 0:00:18]} 114. Ke6 {[%emt 0:00:00]} Ra5 {[%emt 0:00:37]} 115. Nf5 {[%emt 0:00:00]} Ke4 {[%emt 0:00:00]} 116. Nd6+ {[%emt 0:00:30]} Kf4 {[%emt 0:00:35]} 117. Nc4 {[%emt 0:00:00]} Rc5 {[%emt 0:00:34]} 118. Nd6 {[%emt 0:00:00]} Re5+ {[%emt 0:00:40]} 119. Kf6 {[%emt 0:00:30]} Ra5 {[%emt 0:00:30]} 120. Ke6 {[%emt 0:00:00]} Rh5 {[%emt 0:01:06]} 121. Nc4 {[%emt 0:00:00]} Rh6+ {[%emt 0:00:31]} 122. Kd5 {[%emt 0:00:30]} Rg6 {[%emt 0:00:30]} 123. Nd6 {[%emt 0:00:30]} Rg1 {[%emt 0:00:30]} 124. Ke6 {[%emt 0:00:30]} Rd1 {[%emt 0:00:30]} 125. Nc4 {[%emt 0:00:30]} Rd4 {[%emt 0:00:30]} 126. Nd6 {[%emt 0:00:30]} Ra4 {[%emt 0:00:30]} 127. Kd5 {[%emt 0:00:30]} Ra6 {[%emt 0:00:30]} 128. Ke6 {[%emt 0:00:30]} Ke3 {[%emt 0:00:30]} 129. Kd5 {[%emt 0:00:30]} Kd3 {[%emt 0:00:30]} 130. Ke5 {[%emt 0:00:30]} Ra5+ {[%emt 0:00:30]} 131. Ke6 {[%emt 0:00:30]} Kd4 {[%emt 0:00:30]} 132. Nf5+ {[%emt 0:00:30]} Kc5 {[%emt 0:00:30]} 133. Ke5 {[%emt 0:00:30]} Kc6+ {[%emt 0:00:30]} 134. Ke4 {[%emt 0:00:30]} Kd7 {[%emt 0:00:30]} 135. Nd4 {[%emt 0:00:30]} Kd6 {[%emt 0:00:30]} 136. Nf5+ {[%emt 0:00:30]} Ke6 {[%emt 0:00:30]} 137. Nd4+ {[%emt 0:00:30]} Kf6 {[%emt 0:00:30]} 138. Nc6 {[%emt 0:00:00]} Rf5 {[%emt 0:00:00]} 139. Nd4 {[%emt 0:00:00]} Rh5 {[%emt 0:00:00]} 140. Nf3 {[%emt 0:00:00]} 1/2-1/2

[Event "FIDE World Cadets GU12 2022"]
[Site "Batumi"]
[Date "2022.09.27"]
[Round "11.4"]
[White "Yousefian, Maedeh"]
[Black "Mgeladze, Kesaria"]
[Result "1-0"]
[ECO "B06"]
[WhiteElo "1765"]
[BlackElo "1771"]
[Annotator "NA RC COMBH"]
[PlyCount "125"]
[EventDate "2022.09.16"]
[EventType "swiss"]
[EventCountry "GEO"]
[SourceTitle "playchess.com"]
[Source "ChessBase"]
[SourceQuality "1"]
[TimeControl "5400+30"]

1. e4 {[%emt 0:01:00]} c5 {[%emt 0:01:00]} 2. c3 {[%emt 0:00:00]} d5 {[%emt 0:00:30]} 3. exd5 {[%emt 0:00:00]} Qxd5 {[%emt 0:00:30]} 4. d4 {[%emt 0:00:30]} g6 {[%emt 0:00:30]} 5. Nf3 {[%emt 0:00:30]} Bg7 {[%emt 0:00:00]} 6. Be2 {[%emt 0:01:30]} cxd4 {[%emt 0:00:00]} 7. cxd4 {[%emt 0:00:30]} Nf6 {[%emt 0:00:30]} 8. Nc3 {[%emt 0:00:00]} Qd8 {[%emt 0:00:30]} 9. O-O {[%emt 0:01:00]} O-O {[%emt 0:00:00]} 10. h3 {[%emt 0:05:30]} Be6 {[%emt 0:01:00]} 11. Ne5 {[%emt 0:03:30]} Nc6 {[%emt 0:05:30]} 12. Nxc6 {[%emt 0:03:30]} bxc6 {[%emt 0:02:30]} 13. Bf3 {[%emt 0:01:30]} Bd5 {[%emt 0:03:30]} 14. Be3 {[%emt 0:03:30]} Rb8 {[%emt 0:11:30]} 15. b3 {[%emt 0:01:30]} Bxf3 {[%emt 0:10:30]} 16. Qxf3 {[%emt 0:00:30]} Nd5 {[%emt 0:00:00]} 17. Rac1 {[%emt 0:10:30]} Rc8 {[%emt 0:06:00]} 18. Nxd5 {[%emt 0:09:30]} Qxd5 {[%emt 0:00:30]} 19. Qxd5 {[%emt 0:02:30]} cxd5 {[%emt 0:00:30]} 20. Rfd1 {[%emt 0:00:00]} f5 {[%emt 0:02:30]} 21. f4 {[%emt 0:00:00]} Rxc1 {[%emt 0:11:30]} 22. Rxc1 {[%emt 0:00:00]} Rf6 {[%emt 0:00:30]} 23. Kf2 {[%emt 0:08:00]} Ra6 {[%emt 0:03:30]} 24. Rc2 {[%emt 0:00:30]} Kf7 {[%emt 0:00:00]} 25. Ke2 {[%emt 0:00:30]} Ke6 {[%emt 0:01:00]} 26. Kd3 {[%emt 0:00:30]} Kd6 {[%emt 0:00:00]} 27. Bd2 {[%emt 0:01:30]} Kd7 {[%emt 0:02:00]} 28. a4 {[%emt 0:00:30]} Rb6 {[%emt 0:02:30]} 29. b4 {[%emt 0:01:30]} Ra6 {[%emt 0:02:30]} 30. Ra2 {[%emt 0:04:30]} Rc6 {[%emt 0:01:30]} 31. Bc3 {[%emt 0:11:30]} h6 {[%emt 0:05:30]} 32. b5 {[%emt 0:06:30]} Rc4 {[%emt 0:00:00]} 33. a5 {[%emt 0:00:30]} Kc7 {[%emt 0:00:00]} 34. g4 {[%emt 0:02:30]} fxg4 {[%emt 0:04:30]} 35. hxg4 {[%emt 0:00:30]} g5 {[%emt 0:00:30]} 36. Re2 {[%emt 0:04:34]} Bf6 {[%emt 0:00:30]} 37. f5 {[%emt 0:01:45]} Kb7 {[%emt 0:00:30]} 38. Rb2 {[%emt 0:02:53]} Rc8 {[%emt 0:03:30]} 39. Rh2 {[%emt 0:01:11]} Bg7 {[%emt 0:00:30]} 40. Bb4 {[%emt 0:00:20]} Rc7 {[%emt 0:00:30]} 41. Bc5 {[%emt 0:00:15]} a6 {[%emt 0:01:30]} 42. Re2 {[%emt 0:07:21]} Bf6 {[%emt 0:00:30]} 43. Re6 {[%emt 0:00:30]} axb5 {[%emt 0:00:30]} 44. a6+ {[%emt 0:01:41]} Ka8 {[%emt 0:00:30]} 45. Rb6 {[%emt 0:01:00]} Rc8 {[%emt 0:00:30]} 46. Rxb5 {[%emt 0:01:46]} Rh8 {[%emt 0:01:30]} 47. a7 {[%emt 0:01:29]} h5 {[%emt 0:00:34]} 48. gxh5 {[%emt 0:00:30]} g4 {[%emt 0:00:26]} 49. Rb1 {[%emt 0:01:04]} g3 {[%emt 0:00:30]} 50. Ke3 {[%emt 0:00:00]} Rg8 {[%emt 0:00:30]} 51. Kf3 {[%emt 0:00:36]} g2 {[%emt 0:00:30]} 52. Rg1 {[%emt 0:00:30]} Rg5 {[%emt 0:00:00]} 53. Rxg2 {[%emt 0:01:26]} Rxf5+ {[%emt 0:00:00]} 54. Ke3 {[%emt 0:00:32]} Rg5 {[%emt 0:00:30]} 55. Rxg5 {[%emt 0:00:43]} Bxg5+ {[%emt 0:00:30]} 56. Kf3 {[%emt 0:00:37]} Bh6 {[%emt 0:00:00]} 57. Bxe7 {[%emt 0:02:04]} Kxa7 {[%emt 0:00:00]} 58. Bf6 {[%emt 0:00:09]} Kb7 {[%emt 0:00:30]} 59. Kg4 {[%emt 0:00:05]} Kc6 {[%emt 0:00:30]} 60. Kf5 {[%emt 0:00:30]} Kd6 {[%emt 0:00:00]} 61. Kg6 {[%emt 0:00:33]} Ke6 {[%emt 0:00:00]} 62. Be5 {[%emt 0:00:00]} Be3 {[%emt 0:00:00]} 63. h6 {[%emt 0:00:07]} 1-0